Cogmind - Beta 11.1 @@@ ROGUE MODE // 2022.06.09 @ 14:40:03 Player: SC1ENCE Result: Destroyed by G-47 Trooper with Particle Gun Performance ------------- Evolutions (0) 0 Regions Visited (2) 400 Robots Destroyed (19) 95 Value Destroyed (440) 440 Prototype IDs (3) 60 Alien Tech Used (0) 0 Bonus (0) 0 TOTAL SCORE: 995 Bonus ------- None Cogmind --------- Core Integrity 0/250 Matter 261/300 Energy 37/250 System Corruption 0% Temperature Cool (99) Movement Treading (480) Ox4 Location -10/Mines Parts ------- > --- POWER (1) -------- Ion Engine > --- PROPULSION (2) --- Light Treads Compact Wheel > --- UTILITY (2) ------ Huge Storage Unit ECM Suite > --- WEAPON (2) ------- Light Assault Rifle Light Cannon > --- INVENTORY (25) --- Light Ion Engine Light Treads Light Treads Aluminum Leg Aluminum Leg Aluminum Leg Aluminum Leg Aluminum Leg Aluminum Leg Aluminum Leg Aluminum Leg Compact Wheel Compact Wheel High-capacity Storage Unit High-capacity Storage Unit Medium Matter Pod (100) Signal Interpreter EM Pulse Gun Medium Laser Medium Laser Improved Medium Laser Improved Medium Laser Improved Medium Laser Light Assault Rifle Peak State ------------ > --- POWER ------------ Ion Engine > --- PROPULSION ------- Light Treads Wheel > --- UTILITY ---------- High-capacity Storage Unit Improved Terrain Scanner > --- WEAPON ----------- Light Assault Rifle Light Assault Rifle > --- INVENTORY -------- Light Ion Engine Light Ion Engine Light Ion Engine Light Treads Aluminum Leg Aluminum Leg Aluminum Leg Aluminum Leg Aluminum Leg Aluminum Leg Compact Wheel Compact Wheel Compact Wheel High-capacity Storage Unit Signal Interpreter ECM Suite EM Pulse Gun Medium Laser Medium Laser Light Cannon [Rating: 11] Favorites ----------- Power Light Ion Engine Engine Light Ion Engine Propulsion Compact Wheel Treads Light Treads Leg Aluminum Leg Wheel Compact Wheel Utility Huge Storage Unit Device Improved Terrain Scanner Storage Huge Storage Unit Weapon Light Assault Rifle Energy Gun Improved Medium Laser Ballistic Gun Light Assault Rifle Ballistic Cannon Light Cannon Launcher Grenade Launcher Build | -11 -10 -10 ------- Run | Scr Mat Min Slots Evolved . | . . . Power . | . . . Propulsion . | . . . Utility . | . . . Weapon . | . . . Parts Attached 24 | 9 12 3 Power 4 | 2 1 1 Engine 4 | 2 1 1 Core . | . . . Reactor . | . . . Propulsion 9 | 3 5 1 Treads 3 | . 2 1 Leg 1 | . 1 . Wheel 5 | 3 2 . Hover . | . . . Flight . | . . . Utility 5 | 2 3 . Device 2 | 1 1 . Storage 3 | 1 2 . Processor . | . . . Hackware . | . . . Protection . | . . . Artifact . | . . . Weapon 6 | 2 3 1 Energy Gun 1 | . 1 . Energy Cannon . | . . . Ballistic Gun 3 | 2 1 . Ballistic Cannon 1 | . . 1 Launcher 1 | . 1 . Special Weapon . | . . . Impact Weapon . | . . . Slashing Weapon . | . . . Piercing Weapon . | . . . Special Melee Weapon . | . . . Unidentified Prototypes 1 | . 1 . Parts Lost 5 | . 4 1 Power 1 | . . 1 Propulsion 2 | . 2 . Utility 1 | . 1 . Weapon 1 | . 1 . Highest Loss Streak 2 | . 2 1 To Critical Strikes . | . . . Average Slot Usage (%) 96 | . 95 98 Engine 13 | . 14 12 Treads 11 | . 11 14 Wheel 15 | . 15 14 Device 11 | . 11 14 Storage 14 | . 14 14 Energy Gun 5 | . 4 12 Ballistic Gun 21 | . 23 14 Naked Turns . | . . . Heaviest Build 89 | 13 89 89 Greatest Support 32 | 32 26 16 Greatest Overweight (x) 5 | 1 5 5 Average Overweight (x) 3 | . 3 5 Largest Inventory Capacity 25 | 8 25 25 Average Capacity 21 | 7 22 25 Most Carried 25 | 8 25 25 Average Carried 18 | 3 19 24 Final Capacity 25 | 8 25 25 Final Carried 25 | 8 25 24 Class Distribution -------------------- 100% | Mutant Dominant Class ---------------- Mutant | -10/Materials Mutant | -10/Mines Resources | -11 -10 -10 ----------- Run | Scr Mat Min Matter Collected 624 | 300 324 . Remotely . | . . . Salvage Created 683 | 112 471 100 Parts 53 | 8 38 7 Haulers Intercepted 2 | . 2 . Recyclers Shooed 1 | . 1 . Parts Field Recycled . | . . . Retrieved Matter . | . . . Parts Self-Destructed . | . . . Prevented . | . . . Kills | -11 -10 -10 ------- Run | Scr Mat Min Combat Hostiles Destroyed 12 | . 10 2 Guns 10 | . 8 2 AOE 2 | . 2 . Classes Destroyed 7 | 2 4 1 Tunneler 2 | 2 . . Hauler 2 | . 2 . Recycler 2 | 1 1 . Watcher 1 | . 1 . Swarmer 3 | . 3 . Grunt 7 | . 7 . Sentry 2 | . . 2 Best Kill Streak 4 | 3 4 2 Combat Bots Only 3 | . 3 2 Max Kills in Single Turn 2 | 1 2 1 Gunslinging . | . . . Exploded 2 | . 2 . Melee . | . . . Uniques/NPCs Destroyed . | . . . Combat | -11 -10 -10 -------- Run | Scr Mat Min Damage Taken 838 | . 467 371 Core 257 | . 129 128 Absorbed by Shields . | . . . Core Remaining (%) 100 | 100 . . Volleys Fired 66 | 5 51 10 Largest 2 | 2 2 2 Hottest 76 | 40 76 76 Shots Fired 122 | 10 92 20 Gun 117 | 10 88 19 Cannon 1 | . . 1 Launcher 4 | . 4 . Special . | . . . Kinetic 105 | 10 84 11 Thermal 13 | . 4 9 Explosive 4 | . 4 . Electromagnetic . | . . . Robot Hit Streak 15 | 4 15 4 Robot Miss Streak 3 | 1 3 3 Penetration Max . | . . . Secondary Targets 3 | . 1 2 Max Gunslinging Chain 1 | . 1 1 Shots Hit Robots 72 | 7 52 13 Core Hits 42 | 5 31 6 Critical Kills . | . . . Critical Parts Destroyed . | . . . Critical Strikes 1 | . . 1 Burn 1 | . . 1 Melee Attacks . | . . . Impact . | . . . Slashing . | . . . Piercing . | . . . Sneak Attacks . | . . . Combat Hostiles . | . . . Follow-up Attacks . | . . . Damage Inflicted 890 | 62 687 141 Guns 693 | 62 490 141 Cannons . | . . . Explosions 197 | . 197 . Melee . | . . . Ramming . | . . . Kinetic 542 | 62 421 59 Thermal 151 | . 69 82 Explosive 197 | . 197 . Electromagnetic . | . . . Impact . | . . . Slashing . | . . . Piercing . | . . . Highest Corruption . | . . . Average Corruption . | . . . Corruption Purged . | . . . Corruption Blocked . | . . . Overload Shots . | . . . Overflow Damage . | . . . Projectiles . | . . . Explosions . | . . . Melee . | . . . Knockbacks . | . . . Impact . | . . . Kinetic . | . . . Secondary . | . . . Self-Inflicted Damage . | . . . Shots . | . . . Rammed . | . . . Targets Rammed . | . . . Kicked . | . . . Crushed . | . . . Highest Temperature 296 | . 52 296 Average Temperature 75 | . 14 161 Received Heat Transfer 387 | . 207 180 Effects 1 | . . 1 Energy Bleed 1 | . . 1 Siege Activations . | . . . Robots Corrupted . | . . . Combat Hostiles . | . . . Parts Fried . | . . . Impact Corruptions . | . . . Robots Melted . | . . . Combat Hostiles . | . . . Parts Melted . | . . . Heat Transferred 407 | . 148 259 Parts Sabotaged . | . . . Parts Stolen . | . . . Parts Stripped . | . . . Power Chain Reactions . | . . . Missiles Intercepted . | . . . Alert | -11 -10 -10 ------- Run | Scr Mat Min Peak Influence 295 | 15 295 143 Initial 58 | . 9 58 Average 134 | 4 162 79 Maximum Alert Level 1 | . 1 . Low Security (%) 81 | 100 75 100 Level 1 18 | . 24 . Level 2 . | . . . Level 3 . | . . . Level 4 . | . . . Level 5 . | . . . High Security . | . . . Max Security . | . . . Squads Dispatched 1 | . 1 . Investigation . | . . . Extermination . | . . . Reinforcement 1 | . 1 . Assault . | . . . Garrison . | . . . Intercept . | . . . Searches Triggered . | . . . Construction Impeded . | . . . Haulers Reinforced . | . . . Active Scanning Responses . | . . . Cargo Convoy Interrupts . | . . . Stealth | -11 -10 -10 --------- Run | Scr Mat Min Distress Signals . | . . . Communications Jammed . | . . . Distress Signals . | . . . Times Spotted 19 | . 13 6 Peak Tracking Total 3 | . 3 3 Tactical Retreats 2 | . 1 1 Traps | -11 -10 -10 ------- Run | Scr Mat Min Traps Triggered . | . . . Indirectly . | . . . Trap Hack Attempts . | . . . Triggered . | . . . Disarmed . | . . . Reprogrammed . | . . . Reused . | . . . Traps Extracted . | . . . Installed . | . . . Triggered . | . . . Machines | -11 -10 -10 ---------- Run | Scr Mat Min Machines Disabled 1 | . 1 . Max in Single Turn 1 | . 1 . Machines Sabotaged . | . . . Garrisons Compromised . | . . . Overloaded Fab Kills . | . . . Hacking | -11 -10 -10 --------- Run | Scr Mat Min Machines Accessed 3 | . 3 . Terminals 2 | . 2 . Fabricators . | . . . Repair Stations . | . . . Recycling Units 1 | . 1 . Scanalyzers . | . . . Garrison Access . | . . . Total Hacks 10 | . 10 . Successful 5 | . 5 . Failed 5 | . 5 . Catastrophic . | . . . Database Lockouts . | . . . Manual . | . . . Terminals 8 | . 8 . Fabricators . | . . . Repair Stations . | . . . Recycling Units 2 | . 2 . Scanalyzers . | . . . Garrison Access . | . . . Terminal Hacks 5 | . 5 . Record 1 | . 1 . Prototype ID Bank 2 | . 2 . Locate Traps 1 | . 1 . Zone Layout 1 | . 1 . Fabricator Hacks . | . . . Repair Station Hacks . | . . . Recycling Unit Hacks . | . . . Scanalyzer . | . . . Garrison Access Hacks . | . . . Unauthorized Hacks . | . . . Terminals . | . . . Fabricators . | . . . Repair Stations . | . . . Recycling Units . | . . . Scanalyzers . | . . . Garrison Access . | . . . Data Cores Recovered . | . . . Used . | . . . Hacking Detections 3 | . 3 . Full Trace Events 2 | . 2 . Feedback Events . | . . . Feedback Blocked . | . . . Robot Schematics Acquired . | . . . Robots Built . | . . . Authchips . | . . . Time . | . . . Total Robot Build Rating . | . . . Part Schematics Acquired . | . . . Parts Built . | . . . Authchips . | . . . Time . | . . . Total Part Build Rating . | . . . Parts Repaired . | . . . Time . | . . . Parts Recycled . | . . . Recycled Matter . | . . . Retrieved Matter . | . . . Retrieved Components . | . . . Parts Scanalyzed . | . . . Part Schematics Acquired . | . . . Parts Damaged . | . . . Bothacking | -11 -10 -10 ------------ Run | Scr Mat Min Used RIF Installer . | . . . Robots Hacked . | . . . Non-combat . | . . . Combat . | . . . Robot Hacks Applied . | . . . Relay Couplers Released . | . . . Fabnet Peak Effective % . | . . . Robots Rewired . | . . . Allies Hacked . | . . . Hacks Repelled . | . . . Allies | -11 -10 -10 -------- Run | Scr Mat Min Total Allies . | . . . Largest Group . | . . . Highest-Rated Group . | . . . Highest-Rated Ally . | . . . Total Orders . | . . . Ally Attacks . | . . . Total Damage . | . . . Kills . | . . . Allies Corrupted . | . . . Allies Melted . | . . . Intel | -11 -10 -10 ------- Run | Scr Mat Min Robot Analysis Total . | . . . Derelict Logs Recovered . | . . . Drone Launches . | . . . Drone Recoveries . | . . . Exploration | -11 -10 -10 ------------- Run | Scr Mat Min Turns Passed 910 | 93 687 130 Spaces Moved 457 | 65 337 55 Core 6 | 6 . . Treads 5 | . 5 . Legs . | . . . Wheels 446 | 59 332 55 Hover . | . . . Flight . | . . . Fastest Speed 50 | 50 90 175 Average Speed 147 | 94 152 175 Slowest Speed 480 | 100 480 175 Overloaded Moves . | . . . Propulsion Burnouts . | . . . Robots Hopped . | . . . Cave-ins Triggered . | . . . Exploration Rate (%) 22 | 4 44 19 Regions Visited 2 Branch Regions 1 Pre-discovered Areas . | . . . Known Exits Taken . | . . . Unknown Exits Taken 2 | 1 1 . Scrap Searched . | . . . Spaces Dug . | . . . Terrain Destroyed 20 | . 20 . Melee . | . . . Projectile . | . . . AOE 20 | . 20 . Terrain Rammed . | . . . Walls Destroyed . | . . . Machines Disabled . | . . . Actions | -11 -10 -10 --------- Run | Scr Mat Min Total 590 | 84 436 70 Wait 9 | . 7 2 Move 455 | 64 336 55 Hop . | . . . Pick Up 30 | 6 24 . Fast Attach 7 | 7 . . Attach 5 | . 4 1 Detach . | . . . Swap 12 | 2 8 2 Drop 6 | . 6 . Fire 66 | 5 51 10 Melee . | . . . Ram . | . . . Kick . | . . . Crush . | . . . Escape Stasis . | . . . Rewire . | . . . Trap . | . . . Miscellaneous . | . . . Route ------- -11/Scrapyard -10/Materials (discovered 3 exits: [*Mat] / [*Min x2]) -10/Mines History --------- Turn | Location | Event 12 | -11/Scrapyard | Discovered new exit (range 16) 94 | -11/Scrapyard | Entered Materials 311 | -10/Materials | Build established: Mutant 401 | -10/Materials | Core integrity fell below 50% 421 | -10/Materials | Discovered new exit (range 9) 430 | -10/Materials | Discovered new exit (range 8) 608 | -10/Materials | Discovered new exit (range 15) 781 | -10/Materials | Entered Mines 890 | -10/Mines | Core integrity fell below 20% 911 | -10/Mines | Destroyed by G-47 Trooper with Particle Gun Last Messages --------------- 00647_ Dropped Lgt. Treads. 00647_ Acquired Lgt. Treads. 00649_ K-01 Serf collects debris. 00650_ Acquired Med. Matter Pod. 00654_ K-01 Serf collects debris. 00700_ Acquired 19 matter. 00716_ Acquired 10 matter. 00718_ Acquired 3 matter. 00723_ Acquired 78 matter. LOCATION=UNKNOWN GOAL=ESCAPE Something is scanning the area. 00873_ Critical hit (Burn: +37). 00880_ Y-45 Defender suffers critical hit (Burn). 00880_ Y-45 Defender destroyed. 00880_ Switching to secondary target: Y-45 Defender. 00885_ Y-45 Defender destroyed. 00885_ Switching to secondary target: G-47 Trooper. 00890_ Overheating: Energy bleed (-31). 00893_ Lgt. Ion Engine destroyed. Map ----- +----------------------------------------------------+ | ????????????????????????????????????????????? | | ????????????????????????????????????????????? | | ????????????????????????????????????????????? | | ????????????????????????????????????????????? | | ????????????????????????????##??????????????? | | ??????????????????????????? ##?????????????? | | ??????????????????????????? #?????????????? | | ??????????????????????????? #????????? ???? | | ??????????????????????????# #???????? ???? | | ????????????????????????## #???????? ???? | | ???????????????????????## #???????? ???? | | ??????????????????????## ?????????? ???? | | ????????????#####????## #??????????? #???? | | ?????????#### #???## #???????????? #???? | | ????????## ##?## ##??????????? #???? | | ???????## ### ###???###### ###?? | | ??????## ##?## ##? | | ?????## #### #?# #? | | ##??## ### ?? | | ### #????# ## #?? | | #??# #????# ## #??? | | ##???## ##????## #?# #??? | | ## ???????###??????### #??# ##?? | | ???## ??????????????###?## ##### ##? | | ??????#??????????????##!!## ## #? | | ?????????????????????#"]!@# ### #? | | ?????????????????????#%=![g ### ##? | | ?????????????????????#[%*=/ ###?? | | ?????????????????????#"[!!# #### ##???? | | ?????????????????????##[!## #??####????? | | ??????????????????????#### #??????????? | | ?????????????????????????#########??????????? | | ????????????????????????????????????????????? | | ????????????????????????????????????????????? | | | | | | | | | | | | | | | | | | | | | | | | | | | | | | | | | +----------------------------------------------------+ Best States ------------- Heat Dissipation 25 Energy Generation 10 Energy Capacity 250 Matter Stores 300 Matter Capacity 300 Sight Range 16 Terrain Scan Range 16 Terrain Scan Density 10 ECM Strength 1 Evasion (%) 42 Recoil Reduction 1 Item Schematics ----------------- None Robot Schematics ------------------ None Fabricated ------------ Nothing Alien Tech Used ----------------- None Achievements -------------- None Challenges ------------ None Game ------ Seed AntimissileAntigravSpear Manual? 0 Play Time 00:11:53 Cumulative 21.6 hours Start 2022.06.09 @ 14:27:35 End 2022.06.09 @ 14:40:03 Sessions 1 Manual Loads 0 Difficulty Rogue Special Mode None Game No. 19 Rogue 13 Adventurer 6 Explorer 0 Win Type - Total 0 Types 0/0/0/0/0/0/0/0/0 Lore% 8 Gallery% 25 Achievement% 17 Wizard Run 0 Options --------- ASCII 0 Keyboard 0 Movement Mouse Keybinds 0 Fullscreen 1 Font 18/X11 Map View 76x50 Tactical HUD 1 Map Filters NONE Filters NONE Steam 1 RUN: fb091eea-bdad-4453-8bd1-b89463473124